[Event "EYTCC U12 Open 2019"]
[Site "Pardubice"]
[Date "2019.07.15"]
[Round "5.9"]
[White "Cohen, Elad"]
[Black "Tarhan, Adar"]
[Result "1-0"]
[ECO "C85"]
[WhiteElo "2002"]
[BlackElo "1972"]
[Annotator "NA"]
[PlyCount "131"]
[EventDate "2019.07.11"]
[EventType "swiss"]
[EventCountry "CZE"]
[SourceTitle "playchess.com"]
[Source "ChessBase"]
[SourceQuality "1"]
[WhiteTeam "Israel"]
[BlackTeam "Turkey"]
[WhiteTeamCountry "ISR"]
[BlackTeamCountry "TUR"]
[TimeControl "40/5400+30:1800+30"]

1. e4 {[%emt 0:00:00]} e5 {[%emt 0:00:00]} 2. Nf3 {[%emt 0:00:01]} Nc6 {[%emt 0:00:00]} 3. Bb5 {[%emt 0:00:07]} a6 {[%emt 0:00:09]} 4. Ba4 {[%emt 0:00:14]} Nf6 {[%emt 0:00:09]} 5. O-O {[%emt 0:00:19]} Be7 {[%emt 0:00:11]} 6. Bxc6 {[%emt 0:00:16]} dxc6 {[%emt 0:01:21]} 7. d3 {[%emt 0:00:17]} Bd6 {[%emt 0:00:52]} 8. Nbd2 {[%emt 0:00:15]} O-O {[%emt 0:03:34]} 9. d4 Nd7 {[%emt 0:19:27]} 10. Nc4 {[%emt 0:01:40]} f6 {[%emt 0:01:13]} 11. c3 {[%emt 0:06:18]} Qe7 {[%emt 0:01:50]} 12. Nxd6 {[%emt 0:13:29]} cxd6 {[%emt 0:00:16]} 13. Re1 {[%emt 0:02:23]} b6 {[%emt 0:07:32]} 14. Be3 {[%emt 0:06:07]} Rb8 {[%emt 0:06:47]} 15. Qb3+ {[%emt 0:05:46]} Kh8 {[%emt 0:00:24]} 16. Rad1 {[%emt 0:02:51]} Bb7 {[%emt 0:00:59]} 17. a4 {[%emt 0:11:39]} c5 {[%emt 0:02:33]} 18. dxe5 {[%emt 0:10:28]} dxe5 {[%emt 0:03:07]} 19. Nd2 {[%emt 0:00:58]} Bc6 {[%emt 0:02:34]} 20. f3 {[%emt 0:05:04]} b5 {[%emt 0:01:11]} 21. axb5 {[%emt 0:00:09]} axb5 {[%emt 0:00:04]} 22. Ra1 {[%emt 0:01:19]} Ra8 {[%emt 0:01:47]} 23. Bf2 {[%emt 0:01:42]} Qd6 {[%emt 0:02:04]} 24. Nf1 {[%emt 0:03:05]} Rfd8 {[%emt 0:02:23]} 25. c4 {[%emt 0:05:12]} b4 {[%emt 0:02:09]} 26. Ne3 {[%emt 0:00:40]} Nb6 {[%emt 0:01:32]} 27. Nd5 {[%emt 0:01:53]} Ba4 {[%emt 0:02:09]} 28. Qd3 {[%emt 0:01:15]} Nd7 {[%emt 0:01:03]} 29. b3 {[%emt 0:02:54]} Bc6 {[%emt 0:00:20]} 30. Nxb4 {[%emt 0:01:22]} Qc7 {[%emt 0:00:41]} 31. Nxc6 {[%emt 0:02:41]} Qxc6 {[%emt 0:00:05]} 32. Qd5 {[%emt 0:01:53]} Qxd5 {[%emt 0:00:10]} 33. exd5 {[%emt 0:00:44]} Rab8 {[%emt 0:00:11]} 34. Reb1 {[%emt 0:00:42]} Rb7 {[%emt 0:01:03]} 35. b4 {[%emt 0:03:37]} Rdb8 {[%emt 0:02:18]} 36. b5 {[%emt 0:00:54]} Kg8 {[%emt 0:00:17]} 37. Ra6 {[%emt 0:01:10]} Rb6 {[%emt 0:01:15]} 38. Rxb6 {[%emt 0:01:32]} Nxb6 {[%emt 0:01:27]} 39. Rc1 {[%emt 0:00:22]} Rc8 {[%emt 0:00:26]} 40. Kf1 {[%emt 0:00:15]} Kf7 {[%emt 0:00:07]} 41. Ke2 {[%emt 0:30:12]} Ke7 {[%emt 0:30:56]} 42. Kd3 {[%emt 0:01:04]} Kd6 {[%emt 0:00:06]} 43. Ra1 {[%emt 0:00:20]} Ra8 {[%emt 0:00:05]} 44. Rxa8 {[%emt 0:00:32]} Nxa8 {[%emt 0:00:05]} 45. Be1 {[%emt 0:02:23]} Nb6 {[%emt 0:01:46]} 46. Ba5 {[%emt 0:01:26]} Nd7 {[%emt 0:01:43]} 47. g4 {[%emt 0:00:46]} Nb8 {[%emt 0:01:34]} 48. Ke4 {[%emt 0:00:49]} Nd7 {[%emt 0:00:49]} 49. h4 {[%emt 0:02:24]} g6 {[%emt 0:02:40]} 50. Bd8 {[%emt 0:00:32]} h6 {[%emt 0:01:35]} 51. h5 {[%emt 0:00:43]} f5+ {[%emt 0:00:04]} 52. Kd3 {[%emt 0:00:00]} e4+ {[%emt 0:00:00]} 53. fxe4 {[%emt 0:00:00]} fxg4 {[%emt 0:00:00]} 54. hxg6 {[%emt 0:00:00]} Ne5+ {[%emt 0:00:00]} 55. Ke2 {[%emt 0:00:00]} Nxg6 {[%emt 0:00:00]} 56. b6 {[%emt 0:00:00]} Nf8 {[%emt 0:00:00]} 57. e5+ {[%emt 0:00:00]} Kxe5 {[%emt 0:00:00]} 58. b7 {[%emt 0:00:00]} Nd7 {[%emt 0:00:00]} 59. Bc7+ {[%emt 0:00:00]} Kf6 {[%emt 0:00:00]} 60. b8=Q {[%emt 0:00:00]} Nxb8 {[%emt 0:00:00]} 61. Bxb8 {[%emt 0:00:00]} h5 {[%emt 0:00:00]} 62. Kf2 {[%emt 0:00:00]} h4 {[%emt 0:00:00]} 63. Bd6 {[%emt 0:00:00]} g3+ {[%emt 0:00:00]} 64. Kg2 {[%emt 0:00:00]} Kf5 {[%emt 0:00:00]} 65. Be7 {[%emt 0:00:00]} Kg4 {[%emt 0:00:00]} 66. Bxh4 1-0

[Event "EYTCC U12 Open 2019"]
[Site "Pardubice"]
[Date "2019.07.15"]
[Round "5.10"]
[White "Celik, Hasan Huseyin"]
[Black "Vagman, Roy"]
[Result "1-0"]
[ECO "C32"]
[WhiteElo "1903"]
[BlackElo "1941"]
[Annotator "NA"]
[PlyCount "113"]
[EventDate "2019.07.11"]
[EventType "swiss"]
[EventCountry "CZE"]
[SourceTitle "playchess.com"]
[Source "ChessBase"]
[SourceQuality "1"]
[WhiteTeam "Turkey"]
[BlackTeam "Israel"]
[WhiteTeamCountry "TUR"]
[BlackTeamCountry "ISR"]
[TimeControl "40/5400+30:1800+30"]

1. e4 {[%emt 0:00:00]} e5 {[%emt 0:00:00]} 2. f4 {[%emt 0:00:01]} d5 {[%emt 0:00:28]} 3. exd5 {[%emt 0:01:37]} e4 {[%emt 0:00:09]} 4. d3 {[%emt 0:00:06]} Nf6 {[%emt 0:00:45]} 5. dxe4 {[%emt 0:00:13]} Nxe4 {[%emt 0:00:16]} 6. Nf3 {[%emt 0:00:05]} Bc5 {[%emt 0:01:17]} 7. Qe2 {[%emt 0:00:16]} Qe7 {[%emt 0:00:35]} 8. Be3 {[%emt 0:01:53]} Bxe3 {[%emt 0:02:41]} 9. Qxe3 {[%emt 0:00:11]} O-O {[%emt 0:00:43]} 10. Nbd2 {[%emt 0:03:10]} Re8 {[%emt 0:03:22]} 11. O-O-O {[%emt 0:00:36]} Qc5 {[%emt 0:12:48]} 12. Re1 {[%emt 0:02:16]} Qxe3 {[%emt 0:00:38]} 13. Rxe3 {[%emt 0:00:01]} Nd6 {[%emt 0:01:09]} 14. Rxe8+ {[%emt 0:01:01]} Nxe8 {[%emt 0:00:01]} 15. Bd3 {[%emt 0:02:44]} Nd7 {[%emt 0:01:14]} 16. Re1 {[%emt 0:00:38]} Ndf6 {[%emt 0:00:43]} 17. c4 {[%emt 0:01:51]} Nd6 {[%emt 0:03:54]} 18. g3 {[%emt 0:05:14]} g6 {[%emt 0:02:16]} 19. Nd4 {[%emt 0:01:34]} Bd7 {[%emt 0:09:42]} 20. b3 Rd8 {[%emt 0:08:37]} 21. N2f3 {[%emt 0:05:42]} Kf8 {[%emt 0:08:54]} 22. Kc2 {[%emt 0:02:08]} Be8 {[%emt 0:01:04]} 23. Ne5 {[%emt 0:05:13]} Nc8 {[%emt 0:01:10]} 24. Kc3 {[%emt 0:00:43]} a5 {[%emt 0:01:48]} 25. Bc2 {[%emt 0:02:39]} Ne7 {[%emt 0:01:31]} 26. Ndf3 {[%emt 0:07:48]} h6 {[%emt 0:02:07]} 27. Nd4 {[%emt 0:01:24]} Ra8 {[%emt 0:10:15]} 28. a4 {[%emt 0:01:50]} Rd8 {[%emt 0:01:59]} 29. f5 {[%emt 0:01:11]} gxf5 {[%emt 0:01:56]} 30. Nxf5 {[%emt 0:00:31]} Nxf5 {[%emt 0:00:51]} 31. Bxf5 {[%emt 0:00:06]} Rd6 {[%emt 0:03:11]} 32. Rf1 {[%emt 0:06:53]} Kg7 {[%emt 0:01:09]} 33. Bc8 {[%emt 0:02:09]} Ne4+ {[%emt 0:01:47]} 34. Kc2 {[%emt 0:03:02]} Nc5 {[%emt 0:01:22]} 35. Nd3 {[%emt 0:02:26]} Nxd3 {[%emt 0:02:58]} 36. Kxd3 {[%emt 0:00:02]} b5 {[%emt 0:11:08]} 37. axb5 {[%emt 0:08:09]} Rxd5+ {[%emt 0:00:08]} 38. cxd5 {[%emt 0:00:40]} Bxb5+ {[%emt 0:00:07]} 39. Kd4 {[%emt 0:00:01]} Bxf1 {[%emt 0:00:11]} 40. Kc5 {[%emt 0:00:01]} Kf6 {[%emt 0:00:53]} 41. Kc6 {[%emt 0:30:07]} Ke5 {[%emt 0:17:41]} 42. Bb7 {[%emt 0:00:00]} Bc4 {[%emt 0:03:38]} 43. Kxc7 {[%emt 0:00:00]} Bxb3 {[%emt 0:02:19]} 44. d6 {[%emt 0:00:00]} Be6 {[%emt 0:00:02]} 45. Bc6 {[%emt 0:00:00]} f5 {[%emt 0:02:50]} 46. Bd7 {[%emt 0:00:00]} Bc4 {[%emt 0:02:21]} 47. Bxf5 {[%emt 0:00:00]} Bb5 {[%emt 0:00:39]} 48. Bd7 {[%emt 0:00:00]} Bc4 {[%emt 0:00:46]} 49. Ba4 {[%emt 0:00:00]} Be6 {[%emt 0:00:05]} 50. d7 {[%emt 0:00:00]} Bxd7 {[%emt 0:00:04]} 51. Kxd7 {[%emt 0:00:00]} h5 {[%emt 0:04:39]} 52. Ke7 {[%emt 0:00:00]} h4 {[%emt 0:01:46]} 53. g4 {[%emt 0:00:00]} h3 {[%emt 0:00:18]} 54. Bd7 {[%emt 0:00:00]} Kf4 {[%emt 0:00:38]} 55. Kf6 {[%emt 0:00:00]} a4 {[%emt 0:01:14]} 56. g5 {[%emt 0:00:00]} a3 {[%emt 0:00:22]} 57. Be6 {[%emt 0:00:00]} 1-0

[Event "EYTCC U12 Open 2019"]
[Site "Pardubice"]
[Date "2019.07.15"]
[Round "5.11"]
[White "Uritsky, Yonathan"]
[Black "Portakalci, Yusuf"]
[Result "0-1"]
[ECO "C05"]
[WhiteElo "2040"]
[BlackElo "1764"]
[Annotator "NA"]
[PlyCount "106"]
[EventDate "2019.07.11"]
[EventType "swiss"]
[EventCountry "CZE"]
[SourceTitle "playchess.com"]
[Source "ChessBase"]
[SourceQuality "1"]
[WhiteTeam "Israel"]
[BlackTeam "Turkey"]
[WhiteTeamCountry "ISR"]
[BlackTeamCountry "TUR"]
[TimeControl "40/5400+30:1800+30"]

1. e4 {[%emt 0:00:00]} e6 {[%emt 0:00:00]} 2. d4 {[%emt 0:00:16]} d5 {[%emt 0:00:00]} 3. Nd2 {[%emt 0:00:25]} Nf6 {[%emt 0:00:00]} 4. e5 {[%emt 0:00:15]} Nfd7 {[%emt 0:00:03]} 5. Bd3 {[%emt 0:00:28]} c5 {[%emt 0:00:06]} 6. c3 {[%emt 0:00:31]} Nc6 {[%emt 0:00:06]} 7. Ngf3 {[%emt 0:00:26]} cxd4 {[%emt 0:00:44]} 8. cxd4 {[%emt 0:00:13]} f6 {[%emt 0:01:36]} 9. exf6 {[%emt 0:00:51]} Nxf6 {[%emt 0:00:12]} 10. O-O {[%emt 0:00:56]} Bd6 {[%emt 0:00:34]} 11. Re1 {[%emt 0:01:24]} O-O {[%emt 0:01:18]} 12. Nf1 {[%emt 0:01:21]} Qc7 {[%emt 0:04:57]} 13. Bg5 {[%emt 0:08:34]} Bd7 {[%emt 0:06:34]} 14. Rc1 {[%emt 0:02:23]} Bf4 {[%emt 0:16:20]} 15. Rc3 {[%emt 0:14:35]} Bxg5 {[%emt 0:09:01]} 16. Nxg5 {[%emt 0:00:32]} Qf4 {[%emt 0:01:03]} 17. Nf3 {[%emt 0:30:47]} Ne4 {[%emt 0:09:07]} 18. Rc1 {[%emt 0:06:41]} Be8 {[%emt 0:11:58]} 19. Ng3 {[%emt 0:02:04]} Bg6 {[%emt 0:01:22]} 20. Qe2 {[%emt 0:04:20]} Nxg3 {[%emt 0:15:04]} 21. hxg3 {[%emt 0:02:18]} Bxd3 {[%emt 0:01:16]} 22. Qxd3 {[%emt 0:01:13]} Qf6 {[%emt 0:00:17]} 23. Re2 {[%emt 0:02:21]} Rae8 {[%emt 0:03:16]} 24. Rce1 {[%emt 0:00:25]} h6 {[%emt 0:00:29]} 25. a3 {[%emt 0:00:48]} Rf7 {[%emt 0:02:32]} 26. b4 {[%emt 0:01:20]} a6 {[%emt 0:00:43]} 27. Qd2 {[%emt 0:01:20]} Rfe7 {[%emt 0:01:28]} 28. a4 {[%emt 0:00:51]} Na7 {[%emt 0:01:55]} 29. Qb2 {[%emt 0:03:15]} Nc8 {[%emt 0:03:35]} 30. Ne5 {[%emt 0:03:49]} Nd6 {[%emt 0:01:09]} 31. f3 {[%emt 0:01:09]} Rc7 {[%emt 0:01:16]} 32. Rc1 {[%emt 0:02:36]} Rec8 {[%emt 0:00:54]} 33. Rec2 {[%emt 0:01:16]} Nc4 {[%emt 0:01:59]} 34. Qa2 {[%emt 0:03:34]} b5 {[%emt 0:01:46]} 35. axb5 {[%emt 0:00:31]} axb5 {[%emt 0:00:01]} 36. Qa6 {[%emt 0:00:40]} Rb8 {[%emt 0:01:41]} 37. f4 {[%emt 0:00:58]} Rb6 {[%emt 0:02:21]} 38. Qa8+ {[%emt 0:00:08]} Kh7 {[%emt 0:00:30]} 39. Ra2 {[%emt 0:01:38]} Qe7 {[%emt 0:00:22]} 40. Nd3 {[%emt 0:01:28]} Qf6 {[%emt 0:00:28]} 41. Ne5 {[%emt 0:30:23]} Qe7 {[%emt 0:30:21]} 42. Nd3 {[%emt 0:00:00]} Rcb7 {[%emt 0:00:00]} 43. Re1 {[%emt 0:00:00]} Qf6 {[%emt 0:00:00]} 44. Ne5 {[%emt 0:00:00]} Nxe5 {[%emt 0:00:00]} 45. Rxe5 {[%emt 0:00:00]} Qg6 {[%emt 0:00:00]} 46. Qa3 {[%emt 0:00:00]} Rc7 {[%emt 0:00:00]} 47. f5 {[%emt 0:00:00]} exf5 {[%emt 0:00:00]} 48. Qd3 {[%emt 0:01:27]} Rc1+ {[%emt 0:00:00]} 49. Kf2 {[%emt 0:00:19]} Rbc6 {[%emt 0:00:00]} 50. Qf3 {[%emt 0:02:42]} f4 {[%emt 0:00:00]} 51. gxf4 {[%emt 0:01:02]} Qb1 {[%emt 0:00:00]} 52. Qxd5 {[%emt 0:00:44]} Rf1+ {[%emt 0:00:00]} 53. Kg3 {[%emt 0:00:34]} Rg6+ {[%emt 0:00:00]} 0-1

[Event "EYTCC U12 Open 2019"]
[Site "Pardubice"]
[Date "2019.07.15"]
[Round "5.12"]
[White "Durak, Can"]
[Black "Tsirilman, Guy"]
[Result "0-1"]
[ECO "E61"]
[WhiteElo "1753"]
[BlackElo "1792"]
[Annotator "NA"]
[PlyCount "92"]
[EventDate "2019.07.11"]
[EventType "swiss"]
[EventCountry "CZE"]
[SourceTitle "playchess.com"]
[Source "ChessBase"]
[SourceQuality "1"]
[WhiteTeam "Turkey"]
[BlackTeam "Israel"]
[WhiteTeamCountry "TUR"]
[BlackTeamCountry "ISR"]
[TimeControl "40/5400+30:1800+30"]

1. d4 {[%emt 0:00:00]} Nf6 {[%emt 0:00:00]} 2. c4 {[%emt 0:00:00]} g6 {[%emt 0:00:09]} 3. Nc3 {[%emt 0:00:00]} Bg7 {[%emt 0:00:50]} 4. Nf3 {[%emt 0:00:00]} d6 {[%emt 0:00:43]} 5. Bg5 {[%emt 0:00:07]} O-O {[%emt 0:01:08]} 6. e3 {[%emt 0:00:25]} c5 {[%emt 0:01:04]} 7. Be2 {[%emt 0:01:20]} cxd4 {[%emt 0:02:09]} 8. exd4 {[%emt 0:00:50]} h6 {[%emt 0:01:21]} 9. Bh4 {[%emt 0:01:30]} Nh5 {[%emt 0:03:25]} 10. Bg3 {[%emt 0:23:12]} f5 {[%emt 0:03:17]} 11. Nh4 {[%emt 0:02:13]} Nxg3 {[%emt 0:14:23]} 12. hxg3 {[%emt 0:00:27]} g5 {[%emt 0:03:11]} 13. Nf3 {[%emt 0:02:02]} g4 {[%emt 0:06:09]} 14. Nh4 {[%emt 0:03:16]} Nc6 {[%emt 0:12:29]} 15. Ng6 {[%emt 0:06:02]} Rf7 {[%emt 0:12:29]} 16. d5 {[%emt 0:03:54]} Nd4 {[%emt 0:00:09]} 17. Nf4 {[%emt 0:09:21]} Qb6 {[%emt 0:04:02]} 18. Qd2 {[%emt 0:03:15]} Bd7 {[%emt 0:02:33]} 19. Nh5 {[%emt 0:03:45]} Be5 {[%emt 0:04:26]} 20. Rb1 {[%emt 0:04:47]} Rh7 {[%emt 0:04:02]} 21. Bd3 {[%emt 0:05:13]} Rf8 {[%emt 0:02:06]} 22. Nf4 {[%emt 0:02:09]} Be8 {[%emt 0:02:43]} 23. Ne6 {[%emt 0:04:06]} Rf6 {[%emt 0:02:53]} 24. O-O {[%emt 0:03:14]} h5 {[%emt 0:07:32]} 25. Nxd4 {[%emt 0:02:38]} Bxd4 {[%emt 0:00:33]} 26. Ne2 {[%emt 0:02:04]} Be5 {[%emt 0:02:24]} 27. Qe3 {[%emt 0:02:13]} h4 {[%emt 0:03:49]} 28. gxh4 {[%emt 0:01:20]} Qxe3 {[%emt 0:00:03]} 29. fxe3 {[%emt 0:00:13]} Rxh4 {[%emt 0:00:43]} 30. Rxf5 {[%emt 0:02:38]} Bh2+ {[%emt 0:01:14]} 31. Kf2 {[%emt 0:01:52]} Bg6 {[%emt 0:00:45]} 32. Rxf6 {[%emt 0:00:27]} Bxd3 {[%emt 0:00:05]} 33. Re6 {[%emt 0:01:32]} Bxb1 {[%emt 0:00:49]} 34. Rxe7 {[%emt 0:00:18]} Be5 {[%emt 0:01:01]} 35. c5 {[%emt 0:00:50]} Rh7 {[%emt 0:00:56]} 36. Re8+ {[%emt 0:00:21]} Kf7 {[%emt 0:00:03]} 37. Rb8 {[%emt 0:00:25]} Kg6 {[%emt 0:00:47]} 38. b4 {[%emt 0:01:14]} Rf7+ {[%emt 0:00:37]} 39. Ke1 {[%emt 0:00:15]} dxc5 {[%emt 0:00:41]} 40. Rg8+ {[%emt 0:00:13]} Rg7 {[%emt 0:01:21]} 41. Re8 {[%emt 0:30:07]} Kf5 {[%emt 0:03:58]} 42. bxc5 {[%emt 0:00:00]} Bxa2 {[%emt 0:07:01]} 43. d6 {[%emt 0:00:00]} Bd5 {[%emt 0:03:04]} 44. e4+ {[%emt 0:00:00]} Bxe4 {[%emt 0:01:40]} 45. Re7 {[%emt 0:00:00]} Rxe7 {[%emt 0:00:41]} 46. dxe7 {[%emt 0:00:00]} Bc6 {[%emt 0:00:02]} 0-1

[Event "EYTCC U12 Open 2019"]
[Site "Pardubice"]
[Date "2019.07.15"]
[Round "5.13"]
[White "Nemec, Jachym"]
[Black "Smolik, Jachym"]
[Result "1-0"]
[ECO "B40"]
[WhiteElo "1927"]
[BlackElo "1757"]
[Annotator "NA"]
[PlyCount "68"]
[EventDate "2019.07.11"]
[EventType "swiss"]
[EventCountry "CZE"]
[SourceTitle "playchess.com"]
[Source "ChessBase"]
[SourceQuality "1"]
[WhiteTeam "Czech Republic"]
[BlackTeam "Czech Republic"]
[WhiteTeamCountry "CZE"]
[BlackTeamCountry "CZE"]
[TimeControl "40/5400+30:1800+30"]

1. e4 {[%emt 0:00:00]} c5 {[%emt 0:00:00]} 2. Nf3 {[%emt 0:00:00]} e6 {[%emt 0:00:00]} 3. d4 {[%emt 0:00:00]} cxd4 {[%emt 0:00:00]} 4. Nxd4 {[%emt 0:00:00]} Nf6 {[%emt 0:00:20]} 5. Bd3 {[%emt 0:00:48]} a6 {[%emt 0:01:01]} 6. O-O {[%emt 0:00:10]} Qc7 {[%emt 0:03:26]} 7. c4 {[%emt 0:02:08]} b6 {[%emt 0:02:29]} 8. Nc3 {[%emt 0:00:26]} Bb7 {[%emt 0:00:46]} 9. Nc2 {[%emt 0:02:31]} d6 {[%emt 0:03:27]} 10. Be3 {[%emt 0:11:02]} Nbd7 {[%emt 0:02:17]} 11. Qe2 {[%emt 0:00:33]} Rc8 {[%emt 0:04:41]} 12. f4 {[%emt 0:05:12]} Nc5 {[%emt 0:03:02]} 13. Bxc5 {[%emt 0:00:17]} Qxc5+ {[%emt 0:03:33]} 14. Kh1 {[%emt 0:00:08]} Nd7 {[%emt 0:04:53]} 15. Rae1 {[%emt 0:03:42]} Be7 {[%emt 0:06:23]} 16. Nd5 {[%emt 0:00:17]} Bxd5 {[%emt 0:16:19]} 17. exd5 {[%emt 0:00:54]} e5 {[%emt 0:00:57]} 18. Ne3 {[%emt 0:01:37]} g6 {[%emt 0:01:53]} 19. f5 {[%emt 0:05:37]} Qd4 {[%emt 0:07:14]} 20. Bb1 {[%emt 0:09:21]} Bg5 {[%emt 0:04:31]} 21. fxg6 {[%emt 0:01:07]} hxg6 {[%emt 0:01:24]} 22. Qf3 {[%emt 0:00:07]} Kd8 {[%emt 0:06:34]} 23. Bf5 {[%emt 0:30:14]} gxf5 {[%emt 0:10:39]} 24. Nxf5 {[%emt 0:00:11]} Qc5 {[%emt 0:01:14]} 25. a3 {[%emt 0:00:15]} Kc7 {[%emt 0:01:15]} 26. Qg4 {[%emt 0:04:22]} Bd2 {[%emt 0:04:27]} 27. b4 {[%emt 0:00:33]} Bxb4 {[%emt 0:05:39]} 28. axb4 {[%emt 0:00:17]} Qxb4 {[%emt 0:00:00]} 29. Rb1 {[%emt 0:00:18]} Qc5 {[%emt 0:00:25]} 30. Ng7 {[%emt 0:00:33]} Qe3 {[%emt 0:01:36]} 31. Rxf7 {[%emt 0:00:40]} Kb8 {[%emt 0:03:33]} 32. Rxd7 {[%emt 0:03:49]} e4 {[%emt 0:01:17]} 33. Nf5 {[%emt 0:00:54]} Qf2 {[%emt 0:00:16]} 34. Qg3 {[%emt 0:00:40]} Qc5 {[%emt 0:00:55]} 1-0

[Event "EYTCC U12 Open 2019"]
[Site "Pardubice"]
[Date "2019.07.15"]
[Round "5.14"]
[White "Lang, Simon"]
[Black "Brozka, Karel"]
[Result "0-1"]
[ECO "B13"]
[WhiteElo "1506"]
[BlackElo "1816"]
[Annotator "NA"]
[PlyCount "94"]
[EventDate "2019.07.11"]
[EventType "swiss"]
[EventCountry "CZE"]
[SourceTitle "playchess.com"]
[Source "ChessBase"]
[SourceQuality "1"]
[WhiteTeam "Czech Republic"]
[BlackTeam "Czech Republic"]
[WhiteTeamCountry "CZE"]
[BlackTeamCountry "CZE"]
[TimeControl "40/5400+30:1800+30"]

1. e4 {[%emt 0:00:00]} c6 {[%emt 0:00:00]} 2. d4 {[%emt 0:00:42]} d5 {[%emt 0:00:00]} 3. exd5 {[%emt 0:01:55]} cxd5 {[%emt 0:00:06]} 4. c4 {[%emt 0:02:35]} Nf6 {[%emt 0:00:11]} 5. Nc3 {[%emt 0:02:09]} Nc6 {[%emt 0:00:17]} 6. c5 {[%emt 0:03:00]} Bg4 {[%emt 0:01:42]} 7. f3 {[%emt 0:04:07]} Bf5 {[%emt 0:00:18]} 8. Bb5 {[%emt 0:01:18]} e6 {[%emt 0:01:19]} 9. Nge2 {[%emt 0:03:04]} Be7 {[%emt 0:00:33]} 10. Bf4 {[%emt 0:02:06]} O-O {[%emt 0:00:50]} 11. O-O {[%emt 0:02:58]} Rc8 {[%emt 0:17:21]} 12. a3 {[%emt 0:07:01]} Ne8 {[%emt 0:08:23]} 13. b4 {[%emt 0:04:18]} Bg5 {[%emt 0:02:29]} 14. Bg3 {[%emt 0:05:27]} h5 {[%emt 0:02:39]} 15. Bxc6 {[%emt 0:10:03]} bxc6 {[%emt 0:01:06]} 16. Qb3 {[%emt 0:01:42]} h4 {[%emt 0:05:11]} 17. Bf2 {[%emt 0:00:39]} Bd3 {[%emt 0:01:30]} 18. Rfd1 {[%emt 0:06:13]} Bc4 {[%emt 0:02:13]} 19. Qb2 {[%emt 0:01:34]} Qf6 {[%emt 0:00:35]} 20. a4 {[%emt 0:02:24]} a6 {[%emt 0:17:15]} 21. Rab1 {[%emt 0:04:09]} Nc7 {[%emt 0:01:32]} 22. Nc1 {[%emt 0:03:48]} Rb8 {[%emt 0:10:22]} 23. Nd3 {[%emt 0:08:29]} Bxd3 {[%emt 0:06:26]} 24. Rxd3 {[%emt 0:00:14]} Qf5 {[%emt 0:00:12]} 25. Qe2 {[%emt 0:03:06]} Rb7 {[%emt 0:01:37]} 26. Na2 {[%emt 0:05:53]} Re8 {[%emt 0:02:58]} 27. Rdb3 {[%emt 0:03:15]} e5 {[%emt 0:06:35]} 28. Qb2 {[%emt 0:03:03]} e4 {[%emt 0:01:26]} 29. Qc2 {[%emt 0:00:51]} Qf6 {[%emt 0:00:30]} 30. Re1 {[%emt 0:01:57]} e3 {[%emt 0:03:11]} 31. Bxe3 {[%emt 0:02:05]} Bxe3+ {[%emt 0:00:30]} 32. Rbxe3 {[%emt 0:00:30]} Rxe3 {[%emt 0:00:17]} 33. Rxe3 {[%emt 0:00:05]} Qxd4 {[%emt 0:00:03]} 34. Qf2 {[%emt 0:00:14]} Ne6 {[%emt 0:00:37]} 35. Re1 {[%emt 0:02:05]} Qc4 {[%emt 0:02:37]} 36. Qd2 {[%emt 0:01:52]} Qb3 {[%emt 0:01:45]} 37. a5 {[%emt 0:00:33]} Qc4 {[%emt 0:00:52]} 38. Qf2 {[%emt 0:01:03]} Kf8 {[%emt 0:01:19]} 39. Rc1 {[%emt 0:00:34]} Qf4 {[%emt 0:00:40]} 40. Qe2 {[%emt 0:00:36]} Rxb4 {[%emt 0:01:01]} 41. Qxa6 {[%emt 0:31:12]} Rb2 {[%emt 0:30:29]} 42. Qa8+ {[%emt 0:01:07]} Ke7 {[%emt 0:00:06]} 43. Qa7+ {[%emt 0:00:49]} Kf6 {[%emt 0:00:28]} 44. Qa6 {[%emt 0:00:21]} Rxa2 {[%emt 0:00:39]} 45. Qf1 {[%emt 0:00:44]} Rxa5 {[%emt 0:01:07]} 46. Qe1 {[%emt 0:00:05]} Ra3 {[%emt 0:00:49]} 47. Rc3 {[%emt 0:00:57]} Qd4+ {[%emt 0:00:08]} 0-1

[Event "EYTCC U12 Open 2019"]
[Site "Pardubice"]
[Date "2019.07.15"]
[Round "5.15"]
[White "Janous, Marek"]
[Black "Juhanak, Daniel"]
[Result "1/2-1/2"]
[ECO "C02"]
[WhiteElo "1717"]
[BlackElo "1510"]
[Annotator "NA"]
[PlyCount "94"]
[EventDate "2019.07.11"]
[EventType "swiss"]
[EventCountry "CZE"]
[SourceTitle "playchess.com"]
[Source "ChessBase"]
[SourceQuality "1"]
[WhiteTeam "Czech Republic"]
[BlackTeam "Czech Republic"]
[WhiteTeamCountry "CZE"]
[BlackTeamCountry "CZE"]
[TimeControl "40/5400+30:1800+30"]

1. e4 {[%emt 0:00:00]} e6 {[%emt 0:00:00]} 2. d4 {[%emt 0:00:00]} d5 {[%emt 0:00:19]} 3. e5 {[%emt 0:00:36]} c5 {[%emt 0:00:30]} 4. c3 {[%emt 0:00:06]} Nc6 {[%emt 0:00:45]} 5. Nf3 {[%emt 0:01:20]} Bd7 {[%emt 0:00:45]} 6. Be2 {[%emt 0:00:49]} Qb6 {[%emt 0:02:12]} 7. O-O {[%emt 0:01:34]} Nge7 {[%emt 0:02:39]} 8. dxc5 {[%emt 0:03:57]} Qxc5 {[%emt 0:01:20]} 9. Be3 {[%emt 0:00:08]} Qa5 {[%emt 0:01:00]} 10. Nbd2 {[%emt 0:01:48]} Ng6 {[%emt 0:03:07]} 11. Bd4 {[%emt 0:04:12]} Qc7 {[%emt 0:05:07]} 12. Re1 {[%emt 0:16:19]} Ngxe5 {[%emt 0:05:35]} 13. Nxe5 {[%emt 0:00:39]} Nxe5 {[%emt 0:00:19]} 14. Bxe5 {[%emt 0:00:07]} Qxe5 {[%emt 0:00:20]} 15. Bf3 {[%emt 0:00:31]} Qd6 {[%emt 0:09:49]} 16. c4 {[%emt 0:02:04]} Bc6 {[%emt 0:07:51]} 17. Rc1 {[%emt 0:01:32]} Be7 {[%emt 0:04:08]} 18. cxd5 {[%emt 0:15:36]} Bxd5 {[%emt 0:04:45]} 19. Nc4 {[%emt 0:03:07]} Bxc4 {[%emt 0:18:09]} 20. Rxc4 {[%emt 0:00:43]} O-O {[%emt 0:05:19]} 21. Qxd6 {[%emt 0:02:30]} Bxd6 {[%emt 0:00:11]} 22. Rd1 {[%emt 0:00:18]} Rfd8 {[%emt 0:06:54]} 23. Rcd4 {[%emt 0:14:19]} Be7 {[%emt 0:03:17]} 24. Rxd8+ {[%emt 0:05:15]} Rxd8 {[%emt 0:01:17]} 25. Rxd8+ {[%emt 0:02:30]} Bxd8 {[%emt 0:00:04]} 26. Bxb7 {[%emt 0:00:12]} Bb6 {[%emt 0:01:13]} 27. Kf1 {[%emt 0:00:21]} Kf8 {[%emt 0:01:26]} 28. Ke2 {[%emt 0:00:27]} Ke7 {[%emt 0:01:16]} 29. f4 {[%emt 0:03:01]} Bc7 {[%emt 0:02:45]} 30. Kf3 {[%emt 0:00:18]} e5 {[%emt 0:01:36]} 31. g3 {[%emt 0:04:13]} exf4 {[%emt 0:02:23]} 32. gxf4 {[%emt 0:00:22]} Ke6 {[%emt 0:07:41]} 33. Be4 {[%emt 0:00:31]} h6 {[%emt 0:01:20]} 34. h3 {[%emt 0:00:47]} f5 {[%emt 0:00:48]} 35. Bd3 {[%emt 0:00:11]} g5 {[%emt 0:00:10]} 36. fxg5 {[%emt 0:00:29]} hxg5 {[%emt 0:00:02]} 37. b3 {[%emt 0:00:12]} a5 {[%emt 0:01:03]} 38. a4 {[%emt 0:00:05]} Ke5 {[%emt 0:00:33]} 39. Be2 {[%emt 0:00:23]} Kd4 {[%emt 0:00:48]} 40. Bc4 {[%emt 0:00:13]} Ke5 {[%emt 0:00:38]} 41. Be2 {[%emt 0:30:06]} Kf6 {[%emt 0:30:27]} 42. Bc4 {[%emt 0:00:20]} Kg6 {[%emt 0:00:00]} 43. Bd3 {[%emt 0:00:00]} Kf6 {[%emt 0:00:00]} 44. Be2 {[%emt 0:00:00]} Kg6 {[%emt 0:00:00]} 45. Bd3 {[%emt 0:00:00]} Kf6 {[%emt 0:00:00]} 46. Be2 {[%emt 0:00:00]} Ke5 {[%emt 0:00:00]} 47. Bf1 {[%emt 0:00:00]} Kf6 {[%emt 0:00:00]} 1/2-1/2